[Event "Early-Titled-Tuesday-Blitz-April-02-2024"]
[Site "Chess.com"]
[Date "2024.04.02"]
[Round "11"]
[White "SahibSinghKnight"]
[Black "Onischuk_V"]
[Result "0-1"]
[WhiteElo "2627"]
[BlackElo "2832"]
[TimeControl "180+1"]
[EndTime "10:09:31 PDT"]
[Termination "Onischuk_V won by resignation"]

1. e4 {[%clk 0:03:00.9]} 1... d6 {[%clk 0:03:00.3]} 2. d4 {[%clk 0:03:00.4]}
2... Nf6 {[%clk 0:03:00.8]} 3. Nc3 {[%clk 0:03:00.7]} 3... g6 {[%clk 0:03:00.6]}
4. f4 {[%clk 0:02:54.7]} 4... Bg7 {[%clk 0:03:00.7]} 5. e5 {[%clk 0:02:55.3]}
5... dxe5 {[%clk 0:02:57.9]} 6. fxe5 {[%clk 0:02:56.2]} 6... Nd5 {[%clk
0:02:54.2]} 7. Bc4 {[%clk 0:02:54.7]} 7... Nxc3 {[%clk 0:02:51.3]} 8. bxc3
{[%clk 0:02:55.6]} 8... O-O {[%clk 0:02:51.5]} 9. Nf3 {[%clk 0:02:53.8]} 9... c5
{[%clk 0:02:50.2]} 10. O-O {[%clk 0:02:53.7]} 10... Bg4 {[%clk 0:02:47.2]} 11.
Be3 {[%clk 0:02:43.4]} 11... Nc6 {[%clk 0:02:46.6]} 12. h3 {[%clk 0:02:43.8]}
12... Bxf3 {[%clk 0:02:46.2]} 13. Rxf3 {[%clk 0:02:43.4]} 13... Rc8 {[%clk
0:02:30.7]} 14. Bb3 {[%clk 0:02:26.3]} 14... Qa5 {[%clk 0:02:30.4]} 15. Qf1
{[%clk 0:02:11.7]} 15... Qxc3 {[%clk 0:02:22.1]} 16. Bf2 {[%clk 0:01:44.3]}
16... Qa5 {[%clk 0:02:16.8]} 17. Bxf7+ {[%clk 0:01:24.8]} 17... Kh8 {[%clk
0:02:12.1]} 18. c3 {[%clk 0:01:24.6]} 18... Rcd8 {[%clk 0:02:03.5]} 19. Qc4
{[%clk 0:01:18.4]} 19... cxd4 {[%clk 0:01:39.1]} 20. cxd4 {[%clk 0:01:18.9]}
20... Qd2 {[%clk 0:01:33.6]} 21. Be3 {[%clk 0:00:21.8]} 21... Qb2 {[%clk
0:01:32.8]} 22. Raf1 {[%clk 0:00:18.9]} 22... Nxd4 {[%clk 0:01:32.6]} 23. R3f2
{[%clk 0:00:18.4]} 23... Qb6 {[%clk 0:01:28.8]} 24. Bd5 {[%clk 0:00:15.1]} 24...
Rxf2 {[%clk 0:01:26.4]} 25. Rxf2 {[%clk 0:00:15.6]} 25... Bxe5 {[%clk
0:01:20.6]} 26. Rf7 {[%clk 0:00:13.2]} 26... Qb1+ {[%clk 0:01:09.8]} 27. Rf1
{[%clk 0:00:12.5]} 27... Qb2 {[%clk 0:01:07.9]} 28. Rf2 {[%clk 0:00:12.5]} 28...
Qa1+ {[%clk 0:01:04.5]} 29. Rf1 {[%clk 0:00:12.7]} 29... Qc3 {[%clk 0:01:03.1]}
30. Qxc3 {[%clk 0:00:05.9]} 30... Ne2+ {[%clk 0:01:03.3]} 31. Kf2 {[%clk
0:00:05.7]} 31... Nxc3 {[%clk 0:01:03.9]} 32. Bxb7 {[%clk 0:00:06.4]} 32... Nd1+
{[%clk 0:00:58.5]} 33. Ke2 {[%clk 0:00:06.2]} 33... Nxe3 {[%clk 0:00:57.8]} 34.
Kxe3 {[%clk 0:00:06.6]} 34... Kg7 {[%clk 0:00:58]} 35. Be4 {[%clk 0:00:06]}
35... Bd4+ {[%clk 0:00:54.4]} 36. Ke2 {[%clk 0:00:06.1]} 36... Rd6 {[%clk
0:00:52]} 37. Rb1 {[%clk 0:00:06.2]} 37... Bb6 {[%clk 0:00:51.6]} 38. Rd1 {[%clk
0:00:05.9]} 38... Re6 {[%clk 0:00:51.9]} 39. Kf3 {[%clk 0:00:06.3]} 39... h6
{[%clk 0:00:50.9]} 40. Rd2 {[%clk 0:00:05.8]} 40... g5 {[%clk 0:00:49.6]} 41.
Kg4 {[%clk 0:00:02.6]} 41... Rf6 {[%clk 0:00:49.6]} 42. Bf3 {[%clk 0:00:02.3]}
42... Rf4+ {[%clk 0:00:49.3]} 43. Kg3 {[%clk 0:00:02.9]} 43... Bc7 {[%clk
0:00:48.1]} 44. Re2 {[%clk 0:00:03.5]} 44... Rf7+ {[%clk 0:00:44.5]} 45. Kf2
{[%clk 0:00:04]} 45... Bb6+ {[%clk 0:00:43]} 46. Ke1 {[%clk 0:00:04.9]} 46...
Bc5 {[%clk 0:00:41.3]} 47. Kd1 {[%clk 0:00:05.3]} 47... Rf4 {[%clk 0:00:40.8]}
48. Kc2 {[%clk 0:00:06.2]} 48... Rc4+ {[%clk 0:00:39.7]} 49. Kb3 {[%clk
0:00:06.8]} 49... Rb4+ {[%clk 0:00:40.1]} 50. Kc3 {[%clk 0:00:07.7]} 50... Bd6
{[%clk 0:00:38.8]} 51. Re6 {[%clk 0:00:07.2]} 51... Ra4 {[%clk 0:00:37.1]} 52.
Kb3 {[%clk 0:00:05.5]} 52... Ra3+ {[%clk 0:00:37]} 53. Kb2 {[%clk 0:00:05.9]}
53... Rd3 {[%clk 0:00:36.9]} 54. Kc2 {[%clk 0:00:06.4]} 54... Ra3 {[%clk
0:00:36]} 55. Kb2 {[%clk 0:00:06.5]} 55... Ra5 {[%clk 0:00:36.7]} 56. Be4 {[%clk
0:00:05]} 56... Be5+ {[%clk 0:00:34.5]} 57. Kb3 {[%clk 0:00:04.4]} 57... Bf6
{[%clk 0:00:34.8]} 58. Bd3 {[%clk 0:00:03.2]} 58... h5 {[%clk 0:00:34.9]} 59.
Re4 {[%clk 0:00:03.2]} 59... h4 {[%clk 0:00:34.8]} 60. Rg4 {[%clk 0:00:02.7]}
60... Rc5 {[%clk 0:00:33.6]} 61. Be4 {[%clk 0:00:03.6]} 61... Rc3+ {[%clk
0:00:33.1]} 62. Ka4 {[%clk 0:00:03.3]} 62... Re3 {[%clk 0:00:32.8]} 63. Bf3
{[%clk 0:00:03.6]} 63... Kg6 {[%clk 0:00:31.4]} 64. Re4 {[%clk 0:00:04.2]} 64...
Rc3 {[%clk 0:00:30.2]} 65. Rg4 {[%clk 0:00:04.2]} 65... Kf5 {[%clk 0:00:29.5]}
66. Be4+ {[%clk 0:00:05.1]} 66... Ke5 {[%clk 0:00:29.6]} 67. Bf3 {[%clk
0:00:06]} 67... Re3 {[%clk 0:00:29.5]} 68. Kb4 {[%clk 0:00:05.4]} 68... Kf5
{[%clk 0:00:29.3]} 69. Ka4 {[%clk 0:00:05.2]} 69... e5 {[%clk 0:00:29.2]} 70.
Rb4 {[%clk 0:00:04.5]} 70... e4 {[%clk 0:00:29.2]} 71. Bg4+ {[%clk 0:00:05.4]}
71... Kf4 {[%clk 0:00:29.7]} 72. Rb5 {[%clk 0:00:06]} 72... Be7 {[%clk
0:00:28.1]} 73. Rf5+ {[%clk 0:00:06.9]} 73... Kg3 {[%clk 0:00:28.4]} 74. Rf7
{[%clk 0:00:07.5]} 74... Ra3+ {[%clk 0:00:25.2]} 75. Kb5 {[%clk 0:00:07.5]}
75... Bd6 {[%clk 0:00:25.2]} 76. Rf5 {[%clk 0:00:07.7]} 76... Bf4 {[%clk
0:00:24.7]} 77. Rf7 {[%clk 0:00:03.7]} 77... Rxa2 {[%clk 0:00:24.8]} 78. Re7
{[%clk 0:00:04.3]} 78... e3 {[%clk 0:00:24.6]} 79. Bf3 {[%clk 0:00:04.9]} 79...
Rxg2 {[%clk 0:00:23.8]} 80. Bxg2 {[%clk 0:00:04.9]} 80... Kxg2 {[%clk
0:00:24.3]} 81. Kc4 {[%clk 0:00:05.6]} 81... Kxh3 {[%clk 0:00:24.6]} 82. Kd3
{[%clk 0:00:06.5]} 82... Kg2 {[%clk 0:00:25.1]} 83. Rxa7 {[%clk 0:00:05.1]}
83... h3 {[%clk 0:00:25]} 84. Ra2+ {[%clk 0:00:05.8]} 84... Kf3 {[%clk
0:00:24.7]} 85. Ra1 {[%clk 0:00:04.3]} 85... h2 {[%clk 0:00:25.2]} 86. Rh1
{[%clk 0:00:02.8]} 86... Kg2 {[%clk 0:00:25.4]} 87. Ke2 {[%clk 0:00:03.7]} 87...
Kxh1 {[%clk 0:00:25.2]} 88. Kf1 {[%clk 0:00:04.6]} 88... g4 {[%clk 0:00:24.9]}
0-1

[Event "Early-Titled-Tuesday-Blitz-April-02-2024"]
[Site "Chess.com"]
[Date "2024.04.02"]
[Round "11"]
[White "DanylaBagrov"]
[Black "Josgar05"]
[Result "0-1"]
[WhiteElo "2475"]
[BlackElo "2362"]
[TimeControl "180+1"]
[EndTime "10:09:31 PDT"]
[Termination "Josgar05 won by resignation"]

1. d4 {[%clk 0:02:47]} 1... g6 {[%clk 0:03:00.9]} 2. Bf4 {[%clk 0:02:45.5]} 2...
Bg7 {[%clk 0:03:01]} 3. e3 {[%clk 0:02:45.1]} 3... c5 {[%clk 0:03:01]} 4. h3
{[%clk 0:02:42.9]} 4... cxd4 {[%clk 0:02:59.6]} 5. exd4 {[%clk 0:02:42]} 5...
Qb6 {[%clk 0:03:00.2]} 6. Nc3 {[%clk 0:02:37.1]} 6... Bxd4 {[%clk 0:02:47.5]} 7.
Nd5 {[%clk 0:02:32.3]} 7... Qxb2 {[%clk 0:02:39.5]} 8. Rb1 {[%clk 0:02:24.1]}
8... Bc3+ {[%clk 0:02:36.8]} 9. Ke2 {[%clk 0:02:22.5]} 9... Qxa2 {[%clk
0:02:36.9]} 10. Nc7+ {[%clk 0:02:04.1]} 10... Kd8 {[%clk 0:02:30.9]} 11. Nxa8
{[%clk 0:02:03.8]} 11... Nc6 {[%clk 0:02:22.7]} 12. Kf3 {[%clk 0:01:31.2]} 12...
Nf6 {[%clk 0:01:58.5]} 13. g4 {[%clk 0:01:20.4]} 13... b6 {[%clk 0:01:31.7]} 14.
Kg3 {[%clk 0:00:51.7]} 14... Bb7 {[%clk 0:01:27.9]} 15. Nc7 {[%clk 0:00:47.1]}
15... Ne4+ {[%clk 0:01:24.2]} 16. Kg2 {[%clk 0:00:44]} 16... Nd4 {[%clk
0:01:21.6]} 17. f3 {[%clk 0:00:41.5]} 17... Nxc2 {[%clk 0:01:16.5]} 18. Ne2
{[%clk 0:00:34.1]} 18... Ne1+ {[%clk 0:01:12]} 19. Kg1 {[%clk 0:00:31.7]} 19...
Nxf3+ {[%clk 0:01:10.5]} 20. Kg2 {[%clk 0:00:29.1]} 20... Ne1+ {[%clk
0:01:09.8]} 21. Kg1 {[%clk 0:00:28.7]} 21... Nf3+ {[%clk 0:00:49.7]} 22. Kg2
{[%clk 0:00:28.1]} 22... Bd4 {[%clk 0:00:49.9]} 23. Nb5 {[%clk 0:00:14.1]} 23...
Nfd2 {[%clk 0:00:48]} 24. Kh2 {[%clk 0:00:11.9]} 24... Nf3+ {[%clk 0:00:40.7]}
25. Kg2 {[%clk 0:00:11.9]} 25... Bc5 {[%clk 0:00:38.1]} 26. Qb3 {[%clk
0:00:08.7]} 26... Qxb3 {[%clk 0:00:33.3]} 27. Rxb3 {[%clk 0:00:09.6]} 27... Nfd2
{[%clk 0:00:33.9]} 28. Rb2 {[%clk 0:00:04.1]} 28... Ng5+ {[%clk 0:00:27.5]} 29.
Kh2 {[%clk 0:00:04.5]} 29... Ngf3+ {[%clk 0:00:26.9]} 30. Kg2 {[%clk 0:00:04.9]}
30... Ne1+ {[%clk 0:00:27.3]} 31. Kh2 {[%clk 0:00:05]} 31... Ndf3+ {[%clk
0:00:26.4]} 32. Kg3 {[%clk 0:00:04.7]} 32... h5 {[%clk 0:00:25.1]} 33. g5 {[%clk
0:00:03.8]} 33... h4+ {[%clk 0:00:23.5]} 34. Kg4 {[%clk 0:00:04.5]} 34... d6
{[%clk 0:00:23.9]} 35. Bd2 {[%clk 0:00:02.3]} 35... Bc8+ {[%clk 0:00:19.8]} 36.
Kf4 {[%clk 0:00:02.6]} 36... e5+ {[%clk 0:00:20.2]} 37. Ke4 {[%clk 0:00:03.2]}
37... Bf5+ {[%clk 0:00:19.3]} 38. Kd5 {[%clk 0:00:03.2]} 38... Nd3 {[%clk
0:00:18.4]} 39. Kc4 {[%clk 0:00:03.4]} 39... Nxb2+ {[%clk 0:00:18.3]} 40. Kb3
{[%clk 0:00:04.3]} 40... Nd3 {[%clk 0:00:17.8]} 41. Nec3 {[%clk 0:00:05.2]}
41... Nd4+ {[%clk 0:00:16.4]} 42. Ka2 {[%clk 0:00:05.2]} 42... Nxb5 {[%clk
0:00:16.6]} 43. Nxb5 {[%clk 0:00:05.8]} 43... Be6+ {[%clk 0:00:16.5]} 44. Kb1
{[%clk 0:00:05.6]} 44... Ke7 {[%clk 0:00:16.4]} 45. Bxd3 {[%clk 0:00:06.1]}
45... d5 {[%clk 0:00:16.2]} 46. Rf1 {[%clk 0:00:06.5]} 46... e4 {[%clk
0:00:16.6]} 47. Bc2 {[%clk 0:00:07.1]} 47... Rc8 {[%clk 0:00:16.9]} 48. Bc3
{[%clk 0:00:07.4]} 48... a6 {[%clk 0:00:17]} 49. Bf6+ {[%clk 0:00:07.7]} 49...
Kd7 {[%clk 0:00:17.3]} 50. Nd4 {[%clk 0:00:08.3]} 50... b5 {[%clk 0:00:17]} 51.
Bb3 {[%clk 0:00:08.1]} 51... Bxd4 {[%clk 0:00:17]} 52. Bxd4 {[%clk 0:00:09]}
52... a5 {[%clk 0:00:16.7]} 53. Rd1 {[%clk 0:00:08.5]} 53... a4 {[%clk 0:00:17]}
54. Ba2 {[%clk 0:00:08.8]} 54... b4 {[%clk 0:00:17.3]} 55. Ka1 {[%clk
0:00:08.9]} 55... b3 {[%clk 0:00:17.8]} 56. Bb1 {[%clk 0:00:09.6]} 56... a3
{[%clk 0:00:18.1]} 57. Bf6 {[%clk 0:00:08.8]} 57... Rc4 {[%clk 0:00:17.1]} 58.
Be5 {[%clk 0:00:07.9]} 58... Kc6 {[%clk 0:00:17.4]} 59. Bf6 {[%clk 0:00:06.5]}
59... Kb5 {[%clk 0:00:17.8]} 60. Be7 {[%clk 0:00:06.7]} 60... Ka4 {[%clk
0:00:16.2]} 61. Bf6 {[%clk 0:00:06.9]} 61... b2+ {[%clk 0:00:16.3]} 62. Ka2
{[%clk 0:00:07.4]} 62... d4 {[%clk 0:00:16.4]} 63. Bxe4 {[%clk 0:00:04]} 63...
Rc3+ {[%clk 0:00:15.3]} 64. Kb1 {[%clk 0:00:04.1]} 64... Bb3 {[%clk 0:00:10.4]}
65. Rxd4+ {[%clk 0:00:03.5]} 65... Rc4 {[%clk 0:00:10.2]} 66. Rxc4+ {[%clk
0:00:03.7]} 66... Bxc4 {[%clk 0:00:11.1]} 67. Bc2+ {[%clk 0:00:04.1]} 67... Bb3
{[%clk 0:00:11]} 68. Bxb2 {[%clk 0:00:03.9]} 68... axb2 {[%clk 0:00:10.5]} 69.
Kxb2 {[%clk 0:00:03.8]} 69... Bxc2 {[%clk 0:00:10.4]} 70. Kxc2 {[%clk
0:00:04.7]} 70... Kb4 {[%clk 0:00:11.1]} 71. Kd3 {[%clk 0:00:05.6]} 71... Kc5
{[%clk 0:00:11.5]} 72. Ke4 {[%clk 0:00:06.5]} 72... Kc4 {[%clk 0:00:12]} 73. Kf4
{[%clk 0:00:07.4]} 73... Kd4 {[%clk 0:00:12.5]} 74. Kg4 {[%clk 0:00:08.1]} 74...
Ke4 {[%clk 0:00:13]} 75. Kxh4 {[%clk 0:00:08.3]} 75... Kf5 {[%clk 0:00:13.5]}
76. Kg3 {[%clk 0:00:07.5]} 76... Kxg5 {[%clk 0:00:14.1]} 77. Kf3 {[%clk
0:00:08.2]} 77... f5 {[%clk 0:00:14.1]} 78. Kg3 {[%clk 0:00:08.5]} 78... f4+
{[%clk 0:00:14.7]} 79. Kf3 {[%clk 0:00:08.9]} 79... Kf5 {[%clk 0:00:14.5]} 80.
h4 {[%clk 0:00:08.7]} 80... Ke5 {[%clk 0:00:14.3]} 81. Kg4 {[%clk 0:00:09.4]}
81... Ke4 {[%clk 0:00:14.7]} 82. Kg5 {[%clk 0:00:10.3]} 82... f3 {[%clk
0:00:15.1]} 83. Kxg6 {[%clk 0:00:11.2]} 83... f2 {[%clk 0:00:15.8]} 84. h5
{[%clk 0:00:12.1]} 84... f1=Q {[%clk 0:00:16.1]} 85. h6 {[%clk 0:00:13]} 85...
Qf8 {[%clk 0:00:16.6]} 86. Kh7 {[%clk 0:00:12.8]} 86... Ke5 {[%clk 0:00:17.2]}
87. Kg6 {[%clk 0:00:13]} 87... Qh8 {[%clk 0:00:17.8]} 88. h7 {[%clk 0:00:11.8]}
88... Ke6 {[%clk 0:00:18.3]} 89. Kh6 {[%clk 0:00:12.5]} 89... Kf7 {[%clk
0:00:18.5]} 0-1

[Event "Early-Titled-Tuesday-Blitz-April-02-2024"]
[Site "Chess.com"]
[Date "2024.04.02"]
[Round "11"]
[White "Ordekalog"]
[Black "GMKrikor"]
[Result "0-1"]
[WhiteElo "2619"]
[BlackElo "2882"]
[TimeControl "180+1"]
[EndTime "10:09:37 PDT"]
[Termination "GMKrikor won on time"]

1. e4 {[%clk 0:03:00.9]} 1... c5 {[%clk 0:03:00.1]} 2. d3 {[%clk 0:03:00.5]}
2... Nc6 {[%clk 0:03:00]} 3. g3 {[%clk 0:03:00]} 3... g6 {[%clk 0:03:00.4]} 4.
Bg2 {[%clk 0:02:59.7]} 4... Bg7 {[%clk 0:03:01.1]} 5. f4 {[%clk 0:02:59.6]} 5...
d6 {[%clk 0:02:58.8]} 6. Nf3 {[%clk 0:02:59]} 6... e5 {[%clk 0:02:59.1]} 7. O-O
{[%clk 0:02:57.7]} 7... Nge7 {[%clk 0:02:59.2]} 8. f5 {[%clk 0:02:56.1]} 8...
gxf5 {[%clk 0:03:00.1]} 9. Nh4 {[%clk 0:02:55.6]} 9... Bf6 {[%clk 0:02:33.5]}
10. Nxf5 {[%clk 0:02:50.5]} 10... Bxf5 {[%clk 0:02:27.2]} 11. exf5 {[%clk
0:02:49.8]} 11... Qd7 {[%clk 0:02:27.8]} 12. Nc3 {[%clk 0:02:47.4]} 12... d5
{[%clk 0:02:28.3]} 13. Qh5 {[%clk 0:02:37.5]} 13... O-O-O {[%clk 0:02:24.2]} 14.
Qxf7 {[%clk 0:02:31.8]} 14... Rhf8 {[%clk 0:02:20.7]} 15. Qe6 {[%clk 0:02:24.4]}
15... Nd4 {[%clk 0:02:20.9]} 16. Qxd7+ {[%clk 0:02:22.9]} 16... Rxd7 {[%clk
0:02:21.8]} 17. Rf2 {[%clk 0:02:21.3]} 17... h5 {[%clk 0:02:18]} 18. Na4 {[%clk
0:01:27.2]} 18... b6 {[%clk 0:02:13.6]} 19. c3 {[%clk 0:01:26.3]} 19... Ndc6
{[%clk 0:02:11.1]} 20. Bd2 {[%clk 0:01:19.5]} 20... Rg8 {[%clk 0:02:07.4]} 21.
Bf3 {[%clk 0:01:13.4]} 21... h4 {[%clk 0:01:55.8]} 22. g4 {[%clk 0:01:13.2]}
22... e4 {[%clk 0:01:56.1]} 23. dxe4 {[%clk 0:01:02.5]} 23... dxe4 {[%clk
0:01:45.6]} 24. Be2 {[%clk 0:00:53.1]} 24... Kb7 {[%clk 0:01:12.6]} 25. Bf4
{[%clk 0:00:51.2]} 25... Nxf5 {[%clk 0:00:46.4]} 26. Kh1 {[%clk 0:00:42.5]}
26... Nfe7 {[%clk 0:00:37.5]} 27. Rg1 {[%clk 0:00:26.8]} 27... Bg5 {[%clk
0:00:34]} 28. Bc4 {[%clk 0:00:23.2]} 28... Rg7 {[%clk 0:00:31.2]} 29. Be6 {[%clk
0:00:23]} 29... Rd8 {[%clk 0:00:27.9]} 30. h3 {[%clk 0:00:19.6]} 30... Rd3
{[%clk 0:00:26.9]} 31. Kh2 {[%clk 0:00:17.8]} 31... e3 {[%clk 0:00:27.3]} 32.
Rf3 {[%clk 0:00:10.3]} 32... Bxf4+ {[%clk 0:00:24.4]} 33. Rxf4 {[%clk
0:00:11.2]} 33... Ng6 {[%clk 0:00:24.7]} 34. Re4 {[%clk 0:00:08.4]} 34... Re7
{[%clk 0:00:24.9]} 35. Bf5 {[%clk 0:00:06.6]} 35... Nge5 {[%clk 0:00:23.8]} 36.
Kh1 {[%clk 0:00:03.6]} 36... e2 {[%clk 0:00:21.7]} 37. Rxe2 {[%clk 0:00:02.1]}
37... Rxh3+ {[%clk 0:00:20.9]} 38. Kg2 {[%clk 0:00:02]} 38... Rg3+ {[%clk
0:00:21.1]} 39. Kh1 {[%clk 0:00:02.4]} 39... Rxg1+ {[%clk 0:00:06.6]} 40. Kxg1
{[%clk 0:00:03.3]} 40... Rg7 {[%clk 0:00:06.8]} 41. Kg2 {[%clk 0:00:03.2]} 41...
Nxg4 {[%clk 0:00:06.5]} 42. Kh3 {[%clk 0:00:03.7]} 42... Nge5 {[%clk 0:00:05.2]}
43. Be4 {[%clk 0:00:03.1]} 43... Kc7 {[%clk 0:00:05.3]} 44. Kxh4 {[%clk
0:00:03.2]} 44... Kd6 {[%clk 0:00:02.7]} 45. b3 {[%clk 0:00:03.2]} 45... Rg4+
{[%clk 0:00:02.4]} 46. Kh3 {[%clk 0:00:02.8]} 46... Rf4 {[%clk 0:00:03.3]} 47.
Nb2 {[%clk 0:00:02.4]} 47... Kc7 {[%clk 0:00:03.3]} 48. Kg3 {[%clk 0:00:02.6]}
48... Rf8 {[%clk 0:00:03.3]} 49. c4 {[%clk 0:00:02]} 49... Rg8+ {[%clk
0:00:03.6]} 50. Kf2 {[%clk 0:00:02.4]} 50... Nd4 {[%clk 0:00:04.2]} 51. Rd2
{[%clk 0:00:02.1]} 51... Rf8+ {[%clk 0:00:04.4]} 52. Ke1 {[%clk 0:00:01.9]}
52... Nef3+ {[%clk 0:00:04.9]} 53. Bxf3 {[%clk 0:00:01.4]} 53... Nxf3+ {[%clk
0:00:05.8]} 54. Ke2 {[%clk 0:00:02]} 54... Nxd2 {[%clk 0:00:06.4]} 55. Kxd2
{[%clk 0:00:02.9]} 55... Rf2+ {[%clk 0:00:06.6]} 56. Kc3 {[%clk 0:00:03.8]}
56... Rh2 {[%clk 0:00:07.1]} 57. a3 {[%clk 0:00:04.1]} 57... Rh3+ {[%clk
0:00:07.5]} 58. Nd3 {[%clk 0:00:03.8]} 58... Kd6 {[%clk 0:00:08.4]} 59. Kc2
{[%clk 0:00:03.9]} 59... Rh2+ {[%clk 0:00:08.7]} 60. Kc3 {[%clk 0:00:04]} 60...
Rh8 {[%clk 0:00:08.9]} 61. b4 {[%clk 0:00:04]} 61... a6 {[%clk 0:00:08.8]} 62.
b5 {[%clk 0:00:02.8]} 62... axb5 {[%clk 0:00:07.5]} 63. cxb5 {[%clk 0:00:03.7]}
63... Rh4 {[%clk 0:00:07]} 64. Nb2 {[%clk 0:00:03]} 64... Kd5 {[%clk 0:00:07.7]}
65. Kb3 {[%clk 0:00:03.1]} 65... Kd4 {[%clk 0:00:06.8]} 66. a4 {[%clk
0:00:02.4]} 66... Rh3+ {[%clk 0:00:07.3]} 67. Kc2 {[%clk 0:00:02.6]} 67... c4
{[%clk 0:00:07.9]} 68. Nd1 {[%clk 0:00:02.2]} 68... Ra3 {[%clk 0:00:05.5]} 69.
Nb2 {[%clk 0:00:01.9]} 69... Kc5 {[%clk 0:00:04.7]} 70. Kb1 {[%clk 0:00:02.1]}
70... Kb4 {[%clk 0:00:05]} 71. Nd1 {[%clk 0:00:02]} 71... Rxa4 {[%clk
0:00:05.3]} 72. Kb2 {[%clk 0:00:02.1]} 72... Ra3 {[%clk 0:00:05.3]} 73. Nf2
{[%clk 0:00:01.1]} 73... Rb3+ {[%clk 0:00:05.7]} 74. Kc2 {[%clk 0:00:01.1]}
74... Kxb5 {[%clk 0:00:06.6]} 75. Ne4 {[%clk 0:00:01.8]} 75... Kc6 {[%clk
0:00:06.7]} 76. Nd2 {[%clk 0:00:01.7]} 76... Rb4 {[%clk 0:00:07.1]} 77. Kc3
{[%clk 0:00:01.9]} 77... Kc5 {[%clk 0:00:07.4]} 78. Ne4+ {[%clk 0:00:01.9]}
78... Kb5 {[%clk 0:00:08.1]} 79. Nd6+ {[%clk 0:00:02.4]} 79... Ka4 {[%clk
0:00:08.4]} 80. Nxc4 {[%clk 0:00:02.8]} 80... Rxc4+ {[%clk 0:00:08.5]} 81. Kxc4
{[%clk 0:00:03.1]} 81... b5+ {[%clk 0:00:09.1]} 82. Kc3 {[%clk 0:00:04]} 82...
Ka3 {[%clk 0:00:09.6]} 83. Kc2 {[%clk 0:00:04.6]} 83... b4 {[%clk 0:00:08.3]}
84. Kb1 {[%clk 0:00:04.9]} 84... Kb3 {[%clk 0:00:08.9]} 85. Ka1 {[%clk
0:00:05.4]} 85... Kc2 {[%clk 0:00:05.2]} 0-1